Cogmind - Beta 14 @@@ ROGUE MODE // 2025.03.06 @ 03:55:43 Player: Willow Result: Destroyed by as-50553 with Assembled Rifle Performance ------------- Evolutions (0) 0 Regions Visited (4) 800 Robots Destroyed (40) 200 Value Destroyed (677) 677 Prototype IDs (23) 460 Alien Tech Used (0) 0 Bonus (19) 19 TOTAL SCORE: 2156 Bonus ------- High Alert Combat Kills 12 Follower Combat Kills 7 Cogmind --------- Core Integrity 0/250 Matter 298/300 Energy 250/250 System Corruption 0% Temperature Cool (0) Movement Core (600) Ox11 Location -9/Mines Parts ------- > --- POWER (1) -------- Ion Engine > --- PROPULSION (2) --- (None) > --- UTILITY (2) ------ Heat Sink Large Storage Unit > --- WEAPON (2) ------- AWS/Thermal > --- INVENTORY (15) --- High-capacity Matter Pod (200) Faulty Experimental Sensor Array Seismic Detector Targeting Computer Light Armor Plating Light Armor Plating Light Armor Plating Hacking Suite Makeshift System Restoration Module Grenade Launcher Grenade Launcher Mining Laser Peak State ------------ > --- POWER ------------ Ion Engine > --- PROPULSION ------- Light Treads Light Treads > --- UTILITY ---------- Heat Sink Large Storage Unit > --- WEAPON ----------- AWS/Thermal > --- INVENTORY -------- High-capacity Matter Pod Experimental Sensor Array Seismic Detector Targeting Computer Light Armor Plating Light Armor Plating Light Armor Plating Hacking Suite Makeshift System Restoration Module Grenade Launcher Grenade Launcher Mining Laser [Rating: 23] Favorites ----------- Power Ion Engine Engine Ion Engine Propulsion Light Treads Treads Light Treads Utility Large Storage Unit Device Heat Sink Storage Large Storage Unit Weapon Medium Laser Energy Gun Medium Laser Ballistic Gun Assault Rifle Launcher Grenade Launcher Build | -11 -10 -10 -10 -9 ------- Run | Yrd Mat Min Exi Min Slots Evolved . | . . . . . Power . | . . . . . Propulsion . | . . . . . Utility . | . . . . . Weapon . | . . . . . Parts Attached 20 | 6 10 . . 4 Power 4 | 1 3 . . . Engine 4 | 1 3 . . . Core . | . . . . . Reactor . | . . . . . Propulsion 4 | 2 1 . . 1 Treads 4 | 2 1 . . 1 Leg . | . . . . . Wheel . | . . . . . Hover . | . . . . . Flight . | . . . . . Utility 6 | 1 5 . . . Device 5 | 1 4 . . . Storage 1 | . 1 . . . Processor . | . . . . . Hackware . | . . . . . Protection . | . . . . . Artifact . | . . . . . Weapon 6 | 2 1 . . 3 Energy Gun 4 | 2 . . . 2 Energy Cannon . | . . . . . Ballistic Gun 1 | . 1 . . . Ballistic Cannon . | . . . . . Launcher 1 | . . . . 1 Special Weapon . | . . . . . Impact Weapon . | . . . . . Slashing Weapon . | . . . . . Piercing Weapon . | . . . . . Special Melee Weapon . | . . . . . Unidentified Prototypes . | . . . . . Parts Lost 8 | . 4 . . 4 Power 1 | . 1 . . . Propulsion 3 | . . . . 3 Utility 3 | . 3 . . . Weapon 1 | . . . . 1 Highest Loss Streak 4 | . 1 . . 4 To Critical Strikes . | . . . . . Average Slot Usage (%) 98 | . 97 100 100 87 Engine 13 | . 13 14 14 14 Treads 27 | . 28 28 28 23 Device 13 | . 13 14 14 14 Storage 13 | . 12 14 14 14 Energy Gun 20 | . 24 14 14 4 Ballistic Gun 7 | . 3 14 14 9 Peak Build Rating 23 | 6 8 9 11 23 Average Rating 7 | 4 6 8 9 14 On Entrance 6 | . 6 8 9 11 Naked Turns . | . . . . . Heaviest Build 34 | 7 30 30 30 34 Greatest Support 40 | 40 40 40 40 40 Greatest Overweight (x) 1 | . . . . 1 Average Overweight (x) . | . . . . . Largest Inventory Capacity 15 | 5 15 15 15 15 Average Capacity 13 | 5 14 15 15 15 Most Carried 15 | 1 11 13 15 15 Average Carried 7 | . 5 11 13 13 Final Capacity 15 | 5 15 15 15 15 Final Carried 15 | 1 11 13 15 12 Class Distribution -------------------- 100% | Mutant Dominant Class ---------------- Mutant | -10/Materials Mutant | -10/Mines Mutant | -10/Exiles Mutant | -9/Mines Resources | -11 -10 -10 -10 -9 ----------- Run | Yrd Mat Min Exi Min Matter Collected 642 | 260 339 12 . 31 Remotely . | . . . . . Salvage Created 1107 | 151 767 53 . 136 Parts 74 | 12 49 5 . 8 Haulers Intercepted 1 | . 1 . . . Recyclers Shooed 3 | . 3 . . . Parts Field Recycled . | . . . . . Retrieved Matter . | . . . . . Parts Self-Destructed . | . . . . . Prevented . | . . . . . Kills | -11 -10 -10 -10 -9 ------- Run | Yrd Mat Min Exi Min Combat Hostiles Destroyed 25 | . 18 . . 7 Guns 21 | . 17 . . 4 AOE 3 | . . . . 3 Classes Destroyed 10 | 2 6 . . 2 Worker 2 | . 2 . . . Tunneler 7 | 3 1 3 . . Hauler 1 | . 1 . . . Recycler 2 | 1 1 . . . Operator 2 | . 2 . . . Watcher 3 | . 3 . . . Swarmer 12 | . 9 . . 3 Grunt 9 | . 9 . . . Demolisher 2 | . . . . 2 Assembled 2 | . . . . 2 Best Kill Streak 5 | 4 5 1 . 4 Combat Bots Only 4 | . 4 . . 4 Max Kills in Single Turn 3 | 1 1 1 . 3 Gunslinging . | . . . . . Exploded 3 | . . . . 3 Melee . | . . . . . Uniques/NPCs Destroyed . | . . . . . Combat | -11 -10 -10 -10 -9 -------- Run | Yrd Mat Min Exi Min Hostile Shots Fired 121 | . 102 . . 19 Missed 31 | . 28 . . 3 Damage Taken 1166 | . 708 . . 458 Core 255 | . 168 . . 87 Absorbed by Shields . | . . . . . Core Remaining (%) 100 | 100 . . . . Volleys Fired 104 | 14 85 4 . 1 Largest 2 | 2 2 2 . 2 Hottest 90 | 90 90 70 . 50 Shots Fired 224 | 28 170 8 . 18 Gun 223 | 28 170 8 . 17 Cannon . | . . . . . Launcher 1 | . . . . 1 Special . | . . . . . Kinetic 23 | . 18 4 . 1 Thermal 200 | 28 152 4 . 16 Explosive 1 | . . . . 1 Electromagnetic . | . . . . . Robot Hit Streak 9 | 4 9 5 . 7 Robot Miss Streak 7 | 2 7 1 . 1 Penetration Max . | . . . . . Secondary Targets 3 | . 3 . . . Max Gunslinging Chain 1 | . 1 . . . Autonomous 16 | . . . . 16 Shots Hit Robots 136 | 16 100 7 . 13 Core Hits 56 | 5 39 3 . 9 Critical Kills . | . . . . . Critical Parts Destroyed . | . . . . . Critical Strikes 8 | 1 7 . . . Burn 8 | 1 7 . . . Melee Attacks . | . . . . . Impact . | . . . . . Slashing . | . . . . . Piercing . | . . . . . Sneak Attacks . | . . . . . Combat Hostiles . | . . . . . Follow-up Attacks . | . . . . . Damage Inflicted 2128 | 184 1347 104 . 493 Guns 1953 | 184 1327 90 . 352 Cannons . | . . . . . Explosions 141 | . . . . 141 Melee . | . . . . . Ramming 34 | . 20 14 . . Kinetic 221 | . 167 54 . . Thermal 1732 | 184 1160 36 . 352 Explosive 141 | . . . . 141 Electromagnetic . | . . . . . Impact . | . . . . . Slashing . | . . . . . Piercing . | . . . . . Highest Corruption . | . . . . . Average Corruption . | . . . . . Corruption Purged . | . . . . . Corruption Blocked . | . . . . . Overload Shots . | . . . . . Overflow Damage . | . . . . . Projectiles . | . . . . . Explosions . | . . . . . Melee . | . . . . . Knockbacks . | . . . . . Impact . | . . . . . Kinetic . | . . . . . Secondary . | . . . . . Self-Inflicted Damage 8 | . . . . 8 Shots 1 | . . . . 1 Rammed 4 | . 3 1 . . Targets Rammed 5 | . 4 1 . . Kicked . | . . . . . Crushed 1 | . 1 . . . Highest Temperature 210 | 130 210 . . . Average Temperature 64 | 52 67 . . . Received Heat Transfer 240 | . 234 . . 6 Siege Activations . | . . . . . Robots Corrupted . | . . . . . Combat Hostiles . | . . . . . Parts Fried . | . . . . . Impact Corruptions . | . . . . . Robots Melted 1 | . 1 . . . Combat Hostiles 1 | . 1 . . . Parts Melted 13 | 1 11 . . 1 Heat Transferred 4678 | 558 3565 111 . 444 Parts Sabotaged . | . . . . . Parts Stolen . | . . . . . Parts Stripped . | . . . . . Power Chain Reactions . | . . . . . Alert | -11 -10 -10 -10 -9 ------- Run | Yrd Mat Min Exi Min Peak Influence 459 | 20 459 85 . 108 Initial 70 | . 13 70 . . Average 203 | 7 249 78 . 86 Maximum Alert Level 2 | . 2 . . . Low Security (%) 43 | 100 25 100 . 100 Level 1 52 | . 69 . . . Level 2 4 | . 5 . . . Level 3 . | . . . . . Level 4 . | . . . . . Level 5 . | . . . . . High Security . | . . . . . Max Security . | . . . . . Squads Dispatched 5 | . 5 . . . Investigation 2 | . 2 . . . Extermination . | . . . . . Reinforcement 3 | . 3 . . . Assault . | . . . . . Garrison . | . . . . . Intercept . | . . . . . Searches Triggered . | . . . . . Construction Impeded . | . . . . . Haulers Reinforced . | . . . . . Active Scanning Responses . | . . . . . Cargo Convoy Interrupts . | . . . . . Stealth | -11 -10 -10 -10 -9 --------- Run | Yrd Mat Min Exi Min Distress Signals 3 | . 3 . . . Communications Jammed . | . . . . . Distress Signals . | . . . . . Times Spotted 55 | . 41 . . 14 Peak Tracking Total 6 | . 5 . . 6 Tactical Retreats 3 | . 3 . . . Traps | -11 -10 -10 -10 -9 ------- Run | Yrd Mat Min Exi Min Traps Triggered . | . . . . . Indirectly . | . . . . . Trap Hack Attempts . | . . . . . Triggered . | . . . . . Disarmed . | . . . . . Reprogrammed . | . . . . . Reused . | . . . . . Traps Extracted . | . . . . . Installed . | . . . . . Triggered . | . . . . . Machines | -11 -10 -10 -10 -9 ---------- Run | Yrd Mat Min Exi Min Machines Disabled . | . . . . . Max in Single Turn . | . . . . . Machines Repaired . | . . . . . Machines Dismantled . | . . . . . Machines Sabotaged . | . . . . . Overloaded Fab Kills . | . . . . . Hacking | -11 -10 -10 -10 -9 --------- Run | Yrd Mat Min Exi Min Machines Accessed 12 | . 9 . 3 . Terminals 6 | . 6 . . . Fabricators . | . . . . . Repair Stations 1 | . 1 . . . Recycling Units 2 | . 2 . . . Scanalyzers . | . . . . . Garrison Access . | . . . . . Total Hacks 25 | . 22 . 3 . Successful 16 | . 13 . 3 . Failed 9 | . 9 . . . Catastrophic . | . . . . . Database Lockouts . | . . . . . Manual 20 | . 19 . 1 . Terminals 17 | . 17 . . . Fabricators . | . . . . . Repair Stations 3 | . 3 . . . Recycling Units 2 | . 2 . . . Scanalyzers . | . . . . . Garrison Access . | . . . . . Terminal Hacks 6 | . 3 . 3 . Record 2 | . . . 2 . Robot Analysis 2 | . 2 . . . Terminal Index 1 | . 1 . . . Derelict Proto ID Bank 1 | . . . 1 . Fabricator Hacks . | . . . . . Repair Station Hacks 1 | . 1 . . . Scan Component 1 | . 1 . . . Recycling Unit Hacks . | . . . . . Scanalyzer . | . . . . . Garrison Access Hacks . | . . . . . Unauthorized Hacks 9 | . 9 . . . Terminals 7 | . 7 . . . Botnet 3 | . 3 . . . Skim 4 | . 4 . . . Fabricators . | . . . . . Repair Stations . | . . . . . Recycling Units 2 | . 2 . . . Tunnel 2 | . 2 . . . Scanalyzers . | . . . . . Garrison Access . | . . . . . Data Cores Recovered . | . . . . . Used . | . . . . . Hacking Detections 6 | . 6 . . . Full Trace Events . | . . . . . Feedback Events . | . . . . . Feedback Blocked . | . . . . . Robot Schematics Acquired . | . . . . . Robots Built . | . . . . . Authchips . | . . . . . Time . | . . . . . Total Robot Build Rating . | . . . . . Part Schematics Acquired . | . . . . . Parts Built . | . . . . . Authchips . | . . . . . Time . | . . . . . Total Part Build Rating . | . . . . . Parts Repaired . | . . . . . Time . | . . . . . Parts Recycled . | . . . . . Recycled Matter . | . . . . . Retrieved Matter . | . . . . . Retrieved Components . | . . . . . Parts Scanalyzed . | . . . . . Part Schematics Acquired . | . . . . . Parts Damaged . | . . . . . Bothacking | -11 -10 -10 -10 -9 ------------ Run | Yrd Mat Min Exi Min Used RIF Installer . | . . . . . Robots Hacked . | . . . . . Non-combat . | . . . . . Combat . | . . . . . Robot Hacks Applied . | . . . . . Relay Couplers Released . | . . . . . Fabnet Peak Effective % . | . . . . . Robots Rewired 2 | . . . 2 . Allies Hacked . | . . . . . Hacks Repelled . | . . . . . Allies | -11 -10 -10 -10 -9 -------- Run | Yrd Mat Min Exi Min Total Allies 2 | . . . 2 . Largest Group 2 | . . . 2 2 Highest-Rated Group 16 | . . . 16 16 Highest-Rated Ally 8 | . . . 8 8 Total Orders . | . . . . . Ally Attacks 2 | . . . . 2 Total Damage 11 | . . . . 11 Kills 1 | . . . . 1 Allies Corrupted . | . . . . . Allies Melted . | . . . . . Intel | -11 -10 -10 -10 -9 ------- Run | Yrd Mat Min Exi Min Robot Analysis Total 2 | . 2 . . . Derelict Logs Recovered 1 | . . 1 . . Drone Launches . | . . . . . Drone Recoveries . | . . . . . Exploration | -11 -10 -10 -10 -9 ------------- Run | Yrd Mat Min Exi Min Turns Passed 2714 | 144 1660 330 517 63 Spaces Moved 1357 | 52 780 197 298 30 Core 4 | 4 . . . . Treads 1353 | 48 780 197 298 30 Legs . | . . . . . Wheels . | . . . . . Hover . | . . . . . Flight . | . . . . . Fastest Speed 50 | 50 160 160 160 160 Average Speed 160 | 151 160 160 160 181 Slowest Speed 240 | 160 160 160 160 240 Overloaded Moves . | . . . . . Propulsion Burnouts . | . . . . . Robots Hopped . | . . . . . Cave-ins Triggered . | . . . . . Exploration Rate (%) 47 | 4 97 56 71 8 Regions Visited 4 Branch Regions 3 Pre-discovered Areas 3 | . 2 . 1 . Known Exits Taken . | . . . . . Unknown Exits Taken 4 | 1 1 1 1 . Scrap Searched 1 | . . 1 . . Spaces Dug . | . . . . . Terrain Destroyed 13 | . . . . 13 Melee . | . . . . . Projectile 4 | . . . . 4 AOE 9 | . . . . 9 Terrain Rammed . | . . . . . Walls Destroyed . | . . . . . Machines Disabled . | . . . . . Actions | -11 -10 -10 -10 -9 --------- Run | Yrd Mat Min Exi Min Total 1681 | 86 1017 203 339 36 Wait 138 | 14 124 . . . Move 1353 | 51 779 196 297 30 Hop . | . . . . . Pick Up 17 | 1 12 2 2 . Fast Attach 10 | 6 4 . . . Attach 4 | . 2 . . 2 Detach 1 | . 1 . . . Swap 6 | . 4 . . 2 Drop 4 | . 2 . 1 1 Fire 104 | 14 85 4 . 1 Melee . | . . . . . Ram . | . . . . . Kick . | . . . . . Crush 5 | . 4 1 . . Escape Stasis . | . . . . . Rewire 39 | . . . 39 . Trap . | . . . . . Miscellaneous . | . . . . . Route ------- -11/Scrapyard -10/Materials (discovered 4 exits: [*Mat x3] / [*Min]) -10/Mines (discovered 3 exits: [*Mat x2] / *Exi) -10/Exiles -9/Mines History --------- Turn | Location | Event 7 | -11/Scrapyard | Discovered new exit (range 14) 145 | -11/Scrapyard | Entered Materials 319 | -10/Materials | Build established: Mutant 482 | -10/Materials | Discovered new exit (range 8) 846 | -10/Materials | Discovered new exit (range 5) 1066 | -10/Materials | Core integrity fell below 50% 1187 | -10/Materials | Discovered new exit (range 8) 1601 | -10/Materials | Discovered new exit (range 8) 1805 | -10/Materials | Entered Mines 1842 | -10/Mines | Discovered new exit (range 7) 1923 | -10/Mines | Learned 2 Materials zone layouts 1958 | -10/Mines | Discovered new exit (range 10) 2089 | -10/Mines | Found a damaged Exp. Sensor Array with a note attached 2092 | -10/Mines | Found Prototype Device 2127 | -10/Mines | Deemed a non-threat by the Exiles lab entrance 2128 | -10/Mines | Discovered new exit (range 5) 2135 | -10/Mines | Entered Exiles 2135 | -10/Exiles | Found Exiles lab destroyed 2369 | -10/Exiles | Learned location of Zion (-7) 2467 | -10/Exiles | Opened EX-Vault 2475 | -10/Exiles | Found AWS/Thermal 2635 | -10/Exiles | Discovered new exit (range 12) 2652 | -10/Exiles | Entered Mines 2652 | -9/Mines | Accompanied by 2 allies 2658 | -9/Mines | Met a Derelict bent on vengeance 2677 | -9/Mines | Assembled infested the area 2695 | -9/Mines | Core integrity fell below 20% 2715 | -9/Mines | Destroyed by as-50553 with Assembled Rifle Last Messages --------------- 02686_ U-05 Engineer builds a Wall. 02687_ The unstable cave ceiling collapses. 02690_ U-05 Engineer lays Concrete. 02690_ Mercenary 1b destroyed. 02691_ U-05 Engineer lays Concrete. 02692_ U-05 Engineer builds a Wall. 02692_ U-05 Engineer destroyed. 02693_ Dropped Assault Rifle. 02695_ The unstable cave ceiling collapses. 02695_ Lgt. Deuterium Engine melted. 02695_ D-53 Grenadier destroyed. 02699_ The unstable cave ceiling collapses. 02702_ Lgt. Treads destroyed. 02705_ D-53 Grenadier destroyed. 02708_ The unstable cave ceiling collapses. 02708_ Acquired 21 matter. 02709_ as-48029 destroyed. 02710_ The unstable cave ceiling collapses. 02712_ as-63278 destroyed. 02713_ Lgt. Treads destroyed. Map ----- +----------------------------------------------------+ | | | | | | | | | | | | | | | ????????????????????????????????????????????? | | ????????????????????????????????????????????? | | ????????????????????????????????????????????? | | ????????????????????????????????????????????? | | ????????????????????????????????????????????? | | ????????????????????????????????????????????? | | ????????????????????????????????????????????? | | ????????????????????????????????????????????? | | ????????????????????????????????????????????? | | ????????##??????????????????????????????????? | | ???????## #????????????????????????????????? | | ???????# #???????????????????????????????? | | ???????? ??##??????????????????????????? | | ???????? $ ?# #####?????????????????????? | | ???????? a ### ####??????????????????? | | ??????????? #??????????????????? | | ??????????????#; % #??????????????????? | | ???????????????# % =#######?????????????? | | ???????????????# =@ ]l%#?????????????? | | ??????????????## # g ##;## #?????????????? | | ??????????????# ###????????????????? | | ??????????????# #??????????????????? | | ??????????????# #[ # ## ?????????????????? | | ?????????????### ## ????????????????? | | ?????????????# != #? ???????????????? | | ?????????????# %= ##?? ??????????????? | | ?????????????# * #??? ?????????????? | | ?????????????# [= #??? """????????????? | | ?????????????# [ #???? """????????????? | | ?????????????## #???? ""?????????????? | | ??????????????# #????? ??????????????? | | ??????????????#########?????# ??????????????? | | ????????????????????????????????????????????? | | ????????????????????????????????????????????? | | ????????????????????????????????????????????? | | ????????????????????????????????????????????? | | ????????????????????????????????????????????? | | ????????????????????????????????????????????? | | ????????????????????????????????????????????? | | ????????????????????????????????????????????? | | ????????????????????????????????????????????? | | ????????????????????????????????????????????? | | ????????????????????????????????????????????? | +----------------------------------------------------+ Best States ------------- Heat Dissipation 35 Energy Generation 10 Energy Capacity 250 Matter Stores 300 Matter Capacity 300 Sight Range 16 Terrain Scan Density 10 Evasion (%) 40 Recoil Reduction 2 Item Schematics ----------------- None Robot Schematics ------------------ None Fabricated ------------ Nothing Alien Tech Used ----------------- None Achievements -------------- None Challenges ------------ None Game ------ Seed DecoderChipWings Manual? 0 Play Time 00:19:36 Cumulative 209.1 hours Start 2025.03.06 @ 02:40:48 End 2025.03.06 @ 03:55:43 Sessions 1 Manual Loads 0 Difficulty Rogue Special Mode None Game No. 103 Rogue 64 Adventurer 36 Explorer 3 Win Type - Total 6 Types 2/1/0/1/0/1/0/1/0 Lore% 67 Gallery% 66 Achievement% 64 Wizard Run 0 Options --------- Layout 1 ASCII 0 Keyboard 0 Movement Arrows Keybinds 0 Fullscreen 1 Font 24/Smallcaps Map View 50x35 Zoom Use 0% Tactical HUD 1 Map Filters NONE Filters NONE Steam 1 RUN: 5738b9ba-8147-41ed-9f07-8d10b51b0ed3